Workbook

Sheet 光伏收益
A1: 附件
A2: 2025年7-9月份光伏扶贫电站收益分配表
A3: 序号 | B3: 乡镇 | C3: 地点 | D3: 规模 | E3: 户号 | F3: 户名 | G3: 7月份 | H3: 8月份 | I3: 9月份 | J3: 应付总金额 | K3: 增值税 | L3: 附加税 | M3: 运维费 | N3: 电损 | O3: 合计
A4: 1 | B4: 陈村 | C4: 苜蓿 | D4: 312 | E4: 5182164579 | F4: 渑池县扶贫开发有限公司 | G4: 5569.49 | H4: 0 | I4: 0 | J4: =G4+H4+I4 -> 5569.49 | K4: =J4/1.13*0.13 -> 640.74 | L4: =K4*0.1 -> 64.07 | M4: 0 | N4: 0 | O4: =J4-K4-L4-M4-N4 -> 4864.68 | P4: =O4+O5+O6+O7+O8 -> 66769.27
A5: 2 | C5: 五爱 | D5: 312 | E5: 5182165660 | F5: 渑池县扶贫开发有限公司 | G5: 5795.85 | H5: 0 | I5: 0 | J5: 5795.85 | K5: 666.78 | L5: 66.68 | M5: 0 | N5: 0 | O5: 5062.39
A6: 3 | C6: 白浪 | D6: 279 | E6: 5182166302 | F6: 渑池县扶贫开发有限公司 | G6: 6009.37 | H6: 0 | I6: 0 | J6: 6009.37 | K6: 691.34 | L6: 69.13 | M6: 0 | N6: 0 | O6: 5248.90
A7: 4 | C7: 石板沟 | D7: 305.5 | E7: 5182198255 | F7: 渑池县扶贫开发有限公司 | G7: 12245.47 | H7: 13740.82 | I7: 11088.34 | J7: 37074.63 | K7: 4265.22 | L7: 426.52 | M7: =D7*7*3 -> 6415.5 | N7: 1157.83 | O7: 24809.56
A8: 5 | C8: 范洼 | D8: 305.5 | E8: 5182198284 | F8: 渑池县扶贫开发有限公司 | G8: 13863.26 | H8: 14717.69 | I8: 10753.9 | J8: 39334.85 | K8: 4525.25 | L8: 452.53 | M8: 6415.5 | N8: 1157.83 | O8: 26783.74
A9: 6 | B9: 段村 | C9: 中关 | D9: 156 | E9: 5166087230 | F9: 渑池县扶贫开发有限公司 | G9: 6937.49 | H9: 7334.28 | I9: 5621.64 | J9: 19893.41 | K9: 2288.62 | L9: 228.86 | M9: 3276 | N9: 1157.83 | O9: 12942.10 | P9: =O9+O10+O11+O12 -> 67512.14
A10: 7 | C10: 南岭 | D10: 305 | E10: 5181943506 | F10: 渑池县扶贫开发有限公司 | G10: 8357.64 | H10: 8277.9 | I10: 6124.25 | J10: 22759.79 | K10: 2618.38 | L10: 261.84 | M10: 6405 | N10: 1157.83 | O10: 12316.74
A11: 8 | C11: 赵沟 | D11: 201.5 | E11: 5181943535 | F11: 渑池县扶贫开发有限公司 | G11: 8713.62 | H11: 9089.25 | I11: 6110.27 | J11: 23913.14 | K11: 2751.07 | L11: 275.11 | M11: 4231.5 | N11: 1157.83 | O11: 15497.63
A12: 9 | C12: 中朝 | D12: 300 | E12: 5181943694 | F12: 渑池县扶贫开发有限公司 | G12: 13548.47 | H12: 14287.27 | I12: 11334.73 | J12: 39170.47 | K12: 4506.34 | L12: 450.63 | M12: 6300 | N12: 1157.83 | O12: 26755.67
A13: 10 | B13: 果园 | C13: 展庄 | D13: 201.5 | E13: 5182040396 | F13: 渑池县扶贫开发有限公司 | G13: 6013.14 | H13: 6029.77 | I13: 4641.37 | J13: 16684.28 | K13: 1919.43 | L13: 191.94 | M13: 4231.5 | N13: 1157.83 | O13: 9183.58 | P13: =O13+O14+O15 -> 37540.57
A14: 11 | C14: 东俺头 | D14: 156 | E14: 5182042480 | F14: 渑池县扶贫开发有限公司 | G14: 6226.66 | H14: 6839.23 | I14: 5609.17 | J14: 18675.06 | K14: 2148.46 | L14: 214.85 | M14: 3276 | N14: 1157.83 | O14: 11877.92
A15: 12 | C15: 西村 | D15: 305.5 | E15: 5182050964 | F15: 渑池县扶贫开发有限公司 | G15: 9834.47 | H15: 10284.55 | I15: 7418.18 | J15: 27537.2 | K15: 3168.00 | L15: 316.80 | M15: 6415.5 | N15: 1157.83 | O15: 16479.07
A16: 13 | B16: 洪阳 | C16: 柳庄 | D16: 190.5 | E16: 5165920226 | F16: 渑池县扶贫开发有限公司 | G16: 13592.31 | H16: 15210.1 | I16: 11639.32 | J16: 40441.73 | K16: 4652.59 | L16: 465.26 | M16: 4000.5 | N16: 1157.83 | O16: 30165.55 | P16: =O16+O17+O18 -> 82883.89
A17: 15 | C17: 刘村 | D17: 305.5 | E17: 5166039505 | F17: 渑池县扶贫开发有限公司 | G17: 13788.44 | H17: 14883.97 | I17: 11052.06 | J17: 39724.47 | K17: 4570.07 | L17: 457.01 | M17: 6415.5 | N17: 1157.83 | O17: 27124.06
A18: 14 | C18: 石盆 | D18: 409.5 | E18: 5166041094 | F18: 渑池县扶贫开发有限公司 | G18: 13833.03 | H18: 14853.74 | I18: 11786.7 | J18: 40473.47 | K18: 4656.24 | L18: 465.62 | M18: 8599.5 | N18: 1157.83 | O18: 25594.28
A19: 16 | B19: 南村 | C19: 关底 | D19: 305.5 | E19: 5166092379 | F19: 渑池县扶贫开发有限公司 | G19: 13895.01 | H19: 14919.11 | I19: 12341.84 | J19: 41155.96 | K19: 4734.76 | L19: 473.48 | M19: 6415.5 | N19: 1157.83 | O19: 28374.39 | P19: =O19+O20 -> 56144.92
A20: 17 | C20: 青山 | D20: 299 | E20: 5181943766 | F20: 渑池县扶贫开发有限公司 | G20: 13564.34 | H20: 14690.86 | I20: 12053.12 | J20: 40308.32 | K20: 4637.24 | L20: 463.72 | M20: 6279 | N20: 1157.83 | O20: 27770.53
A21: 18 | B21: 坡头 | C21: 坡头 | D21: 299 | E21: 5166093431 | F21: 渑池县扶贫开发有限公司 | G21: 13854.95 | H21: 14933.47 | I21: 11538.04 | J21: 40326.46 | K21: 4639.33 | L21: 463.93 | M21: 6279 | N21: 1157.83 | O21: 27786.37 | P21: =O21+O22+O23+O24+O25 -> 91867.78
A22: 19 | C22: 东观吊 | D22: 253.5 | E22: 5166095062 | F22: 渑池县扶贫开发有限公司 | G22: 11006.34 | H22: 11865.3 | I22: 9238.14 | J22: 32109.78 | K22: 3694.05 | L22: 369.41 | M22: 5323.5 | N22: 1157.83 | O22: 21564.99
A23: 20 | C23: 不召寨 | D23: 156 | E23: 5182191195 | F23: 渑池县扶贫开发有限公司 | G23: 3959.26 | H23: 5907.33 | I23: 4911.94 | J23: 14778.53 | K23: 1700.18 | L23: 170.02 | M23: 3276 | N23: 1157.83 | O23: 8474.50
A24: 21 | C24: 韶峰 | D24: 305.5 | E24: 5182191339 | F24: 渑池县扶贫开发有限公司 | G24: 9303.9 | H24: 11786.32 | I24: 9808.02 | J24: 30898.24 | K24: 3554.66 | L24: 355.47 | M24: 6415.5 | N24: 1157.83 | O24: 19414.78
A25: 22 | C25: 茹窑 | D25: 156 | E25: 5182191355 | F25: 渑池县扶贫开发有限公司 | G25: 6997.95 | H25: 8080.64 | I25: 6744 | J25: 21822.59 | K25: 2510.56 | L25: 251.06 | M25: 3276 | N25: 1157.83 | O25: 14627.14
A26: 23 | B26: 仁村 | C26: 雪白 | D26: 305.5 | E26: 5165969562 | F26: 渑池县扶贫开发有限公司 | G26: 14207.53 | H26: 16091.74 | I26: 12693.28 | J26: 42992.55 | K26: 4946.05 | L26: 494.61 | M26: 6415.5 | N26: 1157.83 | O26: 29978.56 | P26: =O26+O27+O28+O29 -> 97515.47
A27: 24 | C27: 红花窝 | D27: 305.5 | E27: 5181944365 | F27: 渑池县扶贫开发有限公司 | G27: 13660.33 | H27: 15649.97 | I27: 12500.93 | J27: 41811.23 | K27: 4810.14 | L27: 481.01 | M27: 6415.5 | N27: 1157.83 | O27: 28946.75
A28: 25 | C28: 杨河 | D28: 305.5 | E28: 5181944479 | F28: 渑池县扶贫开发有限公司 | G28: 14070.73 | H28: 16263.68 | I28: 13109.35 | J28: 43443.76 | K28: 4997.95 | L28: 499.80 | M28: 6415.5 | N28: 1157.83 | O28: 30372.68
A29: 26 | C29: 上西 | D29: 104 | E29: 5181944583 | F29: 渑池县扶贫开发有限公司 | G29: 4377.22 | H29: 5014.73 | I29: 3842.11 | J29: 13234.06 | K29: 1522.50 | L29: 152.25 | M29: 2184 | N29: 1157.83 | O29: 8217.48
A30: 27 | B30: 天池 | C30: 藕池 | D30: 214.5 | E30: 5165841606 | F30: 渑池县扶贫开发有限公司 | G30: 9189.39 | H30: 10139.81 | I30: 6416.36 | J30: 25745.56 | K30: 2961.88 | L30: 296.19 | M30: 4504.5 | N30: 1157.83 | O30: 16825.16 | P30: =O30+O31+O32+O33+O34 -> 100635.48
A31: 28 | C31: 陈沟 | D31: 305.5 | E31: 5181942965 | F31: 渑池县扶贫开发有限公司 | G31: 14070.73 | H31: 16053.19 | I31: 12809.3 | J31: 42933.22 | K31: 4939.22 | L31: 493.92 | M31: 6415.5 | N31: 1157.83 | O31: 29926.75
A32: 29 | C32: 杜村沟 | D32: 305.5 | E32: 5181943115 | F32: 渑池县扶贫开发有限公司 | G32: 13243.51 | H32: 14179.56 | I32: 11126.89 | J32: 38549.96 | K32: 4434.95 | L32: 443.50 | M32: 6415.5 | N32: 1157.83 | O32: 26098.18
A33: 30 | C33: 南涧 | D33: 251.5 | E33: 5181943245 | F33: 渑池县扶贫开发有限公司 | G33: 5030.98 | H33: 5645.45 | I33: 4617.18 | J33: 15293.61 | K33: 1759.44 | L33: 175.94 | M33: 5281.5 | N33: 1157.83 | O33: 6918.90
A34: 31 | C34: 石泉 | D34: 292.5 | E34: 5181943317 | F34: 渑池县扶贫开发有限公司 | G34: 11516.88 | H34: 12237.16 | I34: 8493.68 | J34: 32247.72 | K34: 3709.91 | L34: 370.99 | M34: 6142.5 | N34: 1157.83 | O34: 20866.49
A35: 32 | B35: 仰韶 | C35: 后涧 | D35: 305.5 | E35: 5181989292 | F35: 渑池县扶贫开发有限公司 | G35: 15014.34 | H35: 16606.06 | I35: 13713.24 | J35: 45333.64 | K35: 5215.37 | L35: 521.54 | M35: 6415.5 | N35: 1157.83 | O35: 32023.40 | P35: =O35 -> 32023.4
A36: 33 | B36: 英豪 | C36: 东七里 | D36: 156 | E36: 5181943913 | F36: 渑池县扶贫开发有限公司 | G36: 5736.9 | H36: 5875.59 | I36: 4760.03 | J36: 16372.52 | K36: 1883.56 | L36: 188.36 | M36: 3276 | N36: 1157.83 | O36: 9866.77 | P36: =O36+O37+O38 -> 55393.95
A37: 34 | C37: 周家山 | D37: 299 | E37: 5181944075 | F37: 渑池县扶贫开发有限公司 | G37: 13713.24 | H37: 14321.65 | I37: 12109.81 | J37: 40144.7 | K37: 4618.42 | L37: 461.84 | M37: 6279 | N37: 1157.83 | O37: 27627.61
A38: 35 | C38: 吴窑头 | D38: 214.5 | E38: 5182184034 | F38: 渑池县扶贫开发有限公司 | G38: 9614.15 | H38: 9584.3 | I38: 7777.18 | J38: 26975.63 | K38: 3103.39 | L38: 310.34 | M38: 4504.5 | N38: 1157.83 | O38: 17899.57
A39: 36 | B39: 张村 | C39: 高桥 | D39: 299 | E39: 5182181921 | F39: 渑池县扶贫开发有限公司 | G39: 9427.47 | H39: 10470.48 | I39: 8985.33 | J39: 28883.28 | K39: 3322.86 | L39: 332.29 | M39: 6279 | N39: 1157.83 | O39: 17791.30 | P39: =O39+O40 -> 42446.72
A40: 37 | C40: 漏泉 | D40: 305.5 | E40: 5182183709 | F40: 渑池县扶贫开发有限公司 | G40: 12545.15 | H40: 13126.73 | I40: 11226.28 | J40: 36898.16 | K40: 4244.92 | L40: 424.49 | M40: 6415.5 | N40: 1157.83 | O40: 24655.42
G41: =SUM(G4:G40) -> 382329.01 | H41: 398991.7 | I41: 313995.98 | J41: 1095316.69 | K41: 126009.87 | L41: 12601.01 | M41: 186606 | N41: 39366.22 | O41: 730733.59
